[Event "SVK ECo-C Extraliga 2021-22"]
[Site "Slovakia"]
[Date "2022.05.07"]
[Round "7.8"]
[White "Jakab, Robert"]
[Black "Gasa, Patrik"]
[Result "0-1"]
[ECO "B32"]
[WhiteElo "1903"]
[BlackElo "2178"]
[Annotator "TA"]
[PlyCount "80"]
[EventDate "2021.10.21"]
[EventType "team-tourn"]
[EventCountry "SVK"]
[SourceTitle "playchess.com"]
[Source "ChessBase"]
[SourceQuality "1"]
[TimeControl "40/5400+30:1800+30"]

{[%evp 12,80,-17,-53,-30,-48,-47,-114,-103,-153,-131,-239,-141,-295,-277,-284,-284,-269,-256,-393,-220,-493,-500,-492,-456,-578,-549,-543,-412,-415,-416,-384,-390,-385,-230,-720,-220,-212,-209,-218,-155,-487,-462,-827,-822,-816,-820,-1001,-956,-954,-777,-679,-462,-431,-402,-551,-398,-540,-539,-479,-446,-668,-657,-641,-547,-545,-510,-845,-833,-1404,-1285]} 1. e4 {[%emt 0:00:05]} c5 {[%emt 0:01:49]} 2. Nf3 {[%emt 0:00:52]} Nc6 {[%emt 0:05:13]} 3. d4 {[%emt 0:02:25]} cxd4 {[%emt 0:00:08]} 4. Nxd4 {[%emt 0:00:05]} e5 {[%emt 0:01:01]} 5. Nxc6 {[%emt 0:07:19]} bxc6 {[%emt 0:03:08][%cal Bb7c6,Bc6d5,Bd5e4][%mdl 32]} 6. Be3 {[%emt 0:08:28]} Nf6 {[%emt 0:03:33]} 7. f3 {[%emt 0:01:35]} Rb8 {[%emt 0:01:03] B32: Sicilian: Löwenthal and Kalashnikov Variations.} 8. b3 {[%emt 0:01:23]} d5 {[%emt 0:01:11]} 9. exd5 {[%emt 0:01:08]} (9. Bd3 $15) 9... cxd5 $17 {[%emt 0:00:18] [#] Black is better.} 10. Bd3 $146 {[%emt 0:02:32]} (10. Be2 $142) ({Predecessor:} 10. Be2 d4 11. Bf2 Qa5+ 12. Qd2 Bb4 13. c3 dxc3 14. Qc2 Bf5 15. Qxf5 c2+ 16. Kf1 c1=Q+ 17. Be1 Qxe1# {0-1 (17) Pinphetsawan,S (1447)-Robillos,A (1672) Bangkok 2020}) 10... Bd6 {[%emt 0:05:23]} 11. c4 {[%emt 0:07:42]} (11. O-O $17 {was worth a try.}) 11... O-O {[%emt 0:14:12]} (11... e4 $19 12. fxe4 Ng4) 12. Nd2 $2 {[%emt 0:02:32]} (12. c5 $17 d4 13. Bxd4) 12... e4 $19 {[%emt 0:13:52]} 13. fxe4 {[%emt 0:14:35]} dxe4 {[%emt 0:05:53]} (13... Bg4 14. Be2 Bxe2 15. Qxe2 $11) 14. Be2 {[%emt 0:04:05] Against Ng4} Qc7 {[%emt 0:03:25] aiming for ...Rd8.} 15. g3 {[%emt 0:05:29]} (15. O-O {might work better.}) 15... Bb7 {[%emt 0:05:41]} (15... Rd8 $142 16. Qc2 Bg4) 16. Rg1 $2 {[%emt 0:11:43]} (16. a3) 16... Bc5 {[%emt 0:09:33]} 17. Nf1 {[%emt 0:02:58]} Rbd8 {[%emt 0:11:34]} 18. Qc2 {[%emt 0:05:29]} Qe5 {[%emt 0:05:28]} 19. Rd1 {[%emt 0:01:57]} Bb4+ {[%emt 0:03:08]} 20. Kf2 {[%emt 0:02:13]} Qf5+ {[%emt 0:00:31]} 21. Kg2 {[%emt 0:02:12] [#]} Rd3 $1 {[%emt 0:00:59][%cal Of6g4][%mdl 512]} 22. h3 {[%emt 0:04:21] [#] Inhibits Ng4.} Rfd8 {[%emt 0:02:57]} (22... h5 $142 $1 {Threatens to win with ...Rfd8.} 23. Qb2 (23. Qb1 Rfd8) 23... Rfd8) 23. Qc1 $2 {[%emt 0:02:01] [#]} (23. Kh2) 23... Rxd1 $2 {[%emt 0:00:34]} ({Wrong is} 23... Bc8 $2 24. g4 Qa5 25. Qb1 $19 (25. Bxd3 $2 exd3 26. c5 Bb7+ 27. Kh2 Bf3 $19)) (23... Qf3+ $3 {[%mdl 512]} 24. Bxf3 exf3+ 25. Kf2 Rxd1 26. Qxd1 Rxd1) 24. Bxd1 {[%emt 0:00:37]} h5 {[%emt 0:00:45][%cal Ob4a3]} ({Stronger than} 24... Bc8 25. Rh1) 25. Be2 {[%emt 0:01:57]} Bc5 {[%emt 0:00:42][%cal Od8d3,Bb4c5,Bc5e3,Be3c1][%mdl 32] White must now prevent ...Rd3!} ({Worse is} 25... Bc8 26. Rh1 $17) 26. Nh2 $2 {[%emt 0:03:12]} (26. Qe1 $17 Bb6 27. b4) 26... Rd3 {[%emt 0:00:55]} 27. Rf1 {[%emt 0:01:59]} (27. Nf1 $142) 27... Bxe3 {[%emt 0:00:31]} 28. Rxf5 {[%emt 0:01:35]} Bxc1 {[%emt 0:00:01] This bishop pair is nice.} 29. Bxd3 {[%emt 0:00:45]} exd3+ {[%emt 0:00:01]} 30. Kf1 {[%emt 0:01:29]} d2 {[%emt 0:00:18]} 31. Ke2 {[%emt 0:00:27]} Ne4 {[%emt 0:00:10] ( -> ...Nc3+)} 32. Rf3 {[%emt 0:00:42] Prevents Nc3+.} a5 {[%emt 0:01:57]} 33. Nf1 {[%emt 0:00:13]} f5 {[%emt 0:00:25]} 34. h4 {[%emt 0:00:18]} g6 {[%emt 0:00:26] Black is clearly winning.} 35. Rd3 {[%emt 0:00:56][%cal Rf1d2]} Bc6 {[%emt 0:00:35]} 36. Rf3 {[%emt 0:00:33]} (36. a3 $142 Bxa3 37. Nxd2) 36... Kf7 {[%emt 0:00:13]} 37. Rd3 {[%emt 0:00:18]} Ke6 {[%emt 0:00:26]} 38. Rf3 {[%emt 0:00:33]} Kd6 {[%emt 0:00:14] ...Kc5 is the strong threat.} 39. Rd3+ {[%emt 0:00:13]} (39. Kd1 $142) 39... Kc5 {[%emt 0:00:12]} 40. Rf3 {[%emt 0:00:39]} Kb4 {[%emt 0:00:22] White got outplayed after the opening.  Weighted Error Value: White=1.02/Black=0.61} 0-1

[Event "SVK ECo-C Extraliga 2021-22"]
[Site "Slovakia"]
[Date "2022.05.08"]
[Round "7.8"]
[White "Papes, Milan"]
[Black "Bochnicka Vladimir ml."]
[Result "0-1"]
[ECO "B30"]
[WhiteElo "1480"]
[BlackElo "2204"]
[Annotator "TA"]
[PlyCount "46"]
[EventDate "2021.10.21"]
[EventType "team-tourn"]
[EventCountry "SVK"]
[SourceTitle "playchess.com"]
[Source "ChessBase"]
[SourceQuality "1"]
[TimeControl "40/5400+30:1800+30"]

{[%evp 9,46,0,0,0,0,0,0,-8,-2,-1,2,-22,0,0,15,21,74,0,-2,-42,29,-66,-54,-279,-289,-279,-283,-283,-290,-859,-819,-839,-811,-861,-850,-812,-774,-881,-876]} 1. e4 {[%emt 0:00:09]} c5 {[%emt 0:00:06]} 2. c4 {[%emt 0:00:21]} Nc6 {[%emt 0:00:14]} 3. Nf3 {[%emt 0:00:21]} e5 {[%emt 0:00:35]} 4. d3 {[%emt 0:00:42]} g6 {[%emt 0:00:31]} 5. Be2 {[%emt 0:00:43]} Bg7 {[%emt 0:00:09]} 6. Nc3 {[%emt 0:00:53] B30: Sicilian: 2...Nc6 3 Bb5, lines without ...g6.} Nge7 {[%emt 0:00:26]} 7. O-O {[%emt 0:00:53]} O-O {[%emt 0:00:19]} 8. a3 {[%emt 0:01:21] The position is equal.} d6 {[%emt 0:01:15]} 9. Rb1 {[%emt 0:02:18]} a5 {[%emt 0:00:47]} 10. Nd5 {[%emt 0:06:00]} h6 {[%emt 0:02:44]} 11. Bd2 {[%emt 0:03:51] [#]} Nxd5 $146 {[%emt 0:10:16]} (11... b6 {is more complex.} 12. b4 axb4 13. axb4 Nxd5 14. cxd5 Nd4) ({Predecessor:} 11... f5 12. b4 axb4 13. axb4 Nxd5 14. cxd5 Nxb4 15. Bxb4 cxb4 16. Rxb4 Ra2 17. Re1 Qa5 {0-1 (74) Tadic,S (2235)-Omorjan,D (2254) Belgrade 2019}) 12. cxd5 {[%emt 0:01:30]} Ne7 {[%emt 0:00:38]} (12... Nd4 $11 {keeps the balance.}) 13. Ne1 {[%emt 0:06:51]} (13. b4 $16) 13... b5 $11 {[%emt 0:01:45]} 14. f4 {[%emt 0:01:36]} Kh7 {[%emt 0:07:01]} (14... exf4 $15 15. Bxf4 f5) 15. Bg4 {[%emt 0:06:02]} ({Better is} 15. fxe5 $11 Bxe5 16. Nf3) 15... f5 $15 {[%emt 0:01:57]} 16. Bh3 {[%emt 0:03:10] Now White is beyond hope.} ({White should play} 16. Be2 $15) 16... exf4 $19 {[%emt 0:04:17]} 17. exf5 {[%emt 0:21:30]} Bxf5 {[%emt 0:01:15]} 18. Bxf5 {[%emt 0:00:41] [#] Strongly threatening Be4.} Nxf5 {[%emt 0:02:44]} ({Weaker is} 18... Rxf5 19. Rxf4 Rxf4 20. Bxf4 $17) 19. Bxf4 $2 {[%emt 0:07:42]} (19. Nc2) 19... Bd4+ {[%emt 0:01:45] Black is clearly winning.} 20. Kh1 {[%emt 0:09:34]} Ne3 {[%emt 0:00:41]} 21. Qc1 {[%emt 0:04:19]} Nxf1 {[%emt 0:01:25]} 22. Nf3 {[%emt 0:00:27] [#]} Bg7 $1 {[%emt 0:02:05][%cal Og6g5]} 23. Qxf1 {[%emt 0:00:25]} (23. Bxh6 Ng3+) 23... Rxf4 {[%emt 0:00:15] Weighted Error Value: White=0.72/Black=0.15 (very precise)} 0-1

[Event "SVK ECo-C Extraliga 2021-22"]
[Site "Slovakia"]
[Date "2022.05.08"]
[Round "7.9"]
[White "Soldan, Jan"]
[Black "Brida, Lukas"]
[Result "1-0"]
[ECO "C50"]
[WhiteElo "1727"]
[BlackElo "1673"]
[Annotator "NA COMBH"]
[PlyCount "26"]
[EventDate "2021.10.21"]
[EventType "team-tourn"]
[EventCountry "SVK"]
[SourceTitle "playchess.com"]
[Source "ChessBase"]
[SourceQuality "1"]
[TimeControl "40/5400+30:1800+30"]

1. e4 {[%emt 0:30:05]} e5 {[%emt 0:30:09]} 2. Nf3 {[%emt 0:00:04]} Nc6 {[%emt 0:00:05]} 3. Bc4 {[%emt 0:00:09]} Bc5 {[%emt 0:00:16]} 4. O-O {[%emt 0:00:06]} Nf6 {[%emt 0:00:14]} 5. d3 {[%emt 0:00:09]} h6 {[%emt 0:00:33]} 6. h3 {[%emt 0:03:06]} O-O {[%emt 0:00:03]} 7. a3 {[%emt 0:10:47]} d6 {[%emt 0:02:28]} 8. Nc3 {[%emt 0:11:27]} a5 {[%emt 0:11:08]} 9. Bd2 {[%emt 0:00:30]} a4 {[%emt 0:00:30]} 10. Kh1 {[%emt 0:00:30]} Nd4 {[%emt 0:00:30]} 11. Be3 {[%emt 0:00:30]} c6 {[%emt 0:00:30]} 12. Nh2 {[%emt 0:00:30]} d5 {[%emt 0:00:30]} 13. Ba2 {[%emt 0:00:30]} Ne6 {[%emt 0:00:35]} 1-0

[Event "SVK ECo-C Extraliga 2021-22"]
[Site "Slovakia"]
[Date "2022.05.08"]
[Round "7.10"]
[White "Kulich, Filip"]
[Black "Matejka, Simon"]
[Result "1-0"]
[ECO "C44"]
[WhiteElo "1682"]
[BlackElo "1235"]
[Annotator "NA COMBH"]
[PlyCount "50"]
[EventDate "2021.10.21"]
[EventType "team-tourn"]
[EventCountry "SVK"]
[SourceTitle "playchess.com"]
[Source "ChessBase"]
[SourceQuality "1"]
[TimeControl "40/5400+30:1800+30"]

1. e4 {[%emt 0:30:03]} e5 {[%emt 0:30:08]} 2. Nf3 {[%emt 0:00:28]} Nc6 {[%emt 0:00:17]} 3. c3 {[%emt 0:00:10]} Bc5 {[%emt 0:01:24]} 4. d4 {[%emt 0:00:23]} exd4 {[%emt 0:00:16]} 5. cxd4 {[%emt 0:00:12]} Bb4+ {[%emt 0:00:24]} 6. Bd2 {[%emt 0:00:17]} Bxd2+ {[%emt 0:00:19]} 7. Qxd2 {[%emt 0:00:22]} d5 {[%emt 0:01:45]} 8. e5 {[%emt 0:00:38]} f6 {[%emt 0:02:04]} 9. Bd3 {[%emt 0:02:54]} Be6 {[%emt 0:02:32]} 10. O-O {[%emt 0:01:31]} Qd7 {[%emt 0:00:55]} 11. Re1 {[%emt 0:01:16]} O-O-O {[%emt 0:00:46]} 12. a3 {[%emt 0:02:02]} Bg4 {[%emt 0:02:09]} 13. Qc2 {[%emt 0:02:11]} Bxf3 {[%emt 0:01:03]} 14. Bf5 {[%emt 0:00:45]} Bh5 {[%emt 0:01:21]} 15. Bxd7+ {[%emt 0:00:20]} Rxd7 {[%emt 0:00:51]} 16. e6 {[%emt 0:00:51]} Re7 {[%emt 0:00:31]} 17. Qc5 {[%emt 0:02:19]} Bf7 {[%emt 0:03:14]} 18. Nc3 {[%emt 0:02:31]} Bg6 {[%emt 0:01:02]} 19. Nxd5 {[%emt 0:00:22]} Re8 {[%emt 0:04:30]} 20. b4 {[%emt 0:01:12]} a6 {[%emt 0:01:33]} 21. a4 {[%emt 0:00:41]} Nge7 {[%emt 0:00:45]} 22. b5 {[%emt 0:04:03]} Nxd5 {[%emt 0:43:41]} 23. bxc6 {[%emt 0:46:29]} Nf4 {[%emt 0:00:30]} 24. Qa7 {[%emt 0:00:30]} Kd8 {[%emt 0:00:30]} 25. e7+ {[%emt 0:00:30]} Rxe7 {[%emt 0:00:30]} 1-0

[Event "SVK ECo-C Extraliga 2021-22"]
[Site "Slovakia"]
[Date "2022.05.08"]
[Round "7.11"]
[White "Dokaniev, Oleksandr"]
[Black "Landik, Alina"]
[Result "1/2-1/2"]
[ECO "C92"]
[WhiteElo "1408"]
[BlackElo "1527"]
[Annotator "NA COMBH"]
[PlyCount "25"]
[EventDate "2021.10.21"]
[EventType "team-tourn"]
[EventCountry "SVK"]
[SourceTitle "playchess.com"]
[Source "ChessBase"]
[SourceQuality "1"]
[TimeControl "40/5400+30:1800+30"]

1. e4 {[%emt 0:30:05]} e5 {[%emt 0:30:05]} 2. Nf3 {[%emt 0:00:05]} Nc6 {[%emt 0:00:06]} 3. Bb5 {[%emt 0:00:00]} a6 {[%emt 0:00:06]} 4. Ba4 {[%emt 0:00:15]} Nf6 {[%emt 0:00:11]} 5. O-O {[%emt 0:00:09]} b5 {[%emt 0:00:08]} 6. Bb3 {[%emt 0:00:10]} Be7 {[%emt 0:00:09]} 7. Re1 {[%emt 0:00:09]} d6 {[%emt 0:00:10]} 8. h3 {[%emt 0:00:11]} O-O {[%emt 0:00:10]} 9. c3 {[%emt 0:00:06]} Bb7 {[%emt 0:00:09]} 10. d4 {[%emt 0:00:09]} Re8 {[%emt 0:00:10]} 11. Ng5 {[%emt 0:00:08]} Rf8 {[%emt 0:00:07]} 12. Nf3 {[%emt 0:00:05]} Re8 {[%emt 0:00:09]} 13. Ng5 {[%emt 0:00:06]} 1/2-1/2

[Event "SVK ECo-C Extraliga 2021-22"]
[Site "Slovakia"]
[Date "2022.05.08"]
[Round "7.13"]
[White "Klimek, Martin"]
[Black "Nedoba, Jakub"]
[Result "1-0"]
[ECO "B12"]
[WhiteElo "1451"]
[BlackElo "1158"]
[Annotator "NA COMBH"]
[PlyCount "53"]
[EventDate "2021.10.21"]
[EventType "team-tourn"]
[EventCountry "SVK"]
[SourceTitle "playchess.com"]
[Source "ChessBase"]
[SourceQuality "1"]
[TimeControl "40/5400+30:1800+30"]

1. e4 {[%emt 0:30:02]} c6 {[%emt 0:32:01]} 2. e5 {[%emt 0:00:36]} d5 {[%emt 0:01:08]} 3. d4 {[%emt 0:00:22]} Bf5 {[%emt 0:00:31]} 4. Bd3 {[%emt 0:00:16]} Bxd3 {[%emt 0:02:47]} 5. Qxd3 {[%emt 0:00:15]} e6 {[%emt 0:01:15]} 6. Nf3 {[%emt 0:01:14]} Nd7 {[%emt 0:00:52]} 7. O-O {[%emt 0:01:16]} c5 {[%emt 0:02:32]} 8. c3 {[%emt 0:00:41]} c4 {[%emt 0:01:15]} 9. Qc2 {[%emt 0:02:10]} Ne7 {[%emt 0:01:19]} 10. Be3 {[%emt 0:03:11]} Nf5 {[%emt 0:04:13]} 11. Qe2 {[%emt 0:02:11]} g6 {[%emt 0:03:30]} 12. Nbd2 {[%emt 0:02:09]} Be7 {[%emt 0:00:50]} 13. Rfc1 {[%emt 0:02:46]} a5 {[%emt 0:01:00]} 14. b3 {[%emt 0:01:52]} b5 {[%emt 0:06:55]} 15. a4 {[%emt 0:04:05]} b4 {[%emt 0:02:24]} 16. bxc4 {[%emt 0:02:19]} bxc3 {[%emt 0:03:08]} 17. Rxc3 {[%emt 0:01:02]} Nxe3 {[%emt 0:01:35]} 18. Qxe3 {[%emt 0:00:48]} Nb6 {[%emt 0:01:21]} 19. c5 {[%emt 0:01:33]} Nd7 {[%emt 0:01:00]} 20. Nb1 {[%emt 0:08:28]} O-O {[%emt 0:00:41]} 21. Na3 {[%emt 0:00:30]} Nb8 {[%emt 0:05:11]} 22. Nb5 {[%emt 0:06:54]} Nc6 {[%emt 0:01:57]} 23. Nd6 {[%emt 0:04:12]} Bxd6 {[%emt 0:01:30]} 24. cxd6 {[%emt 0:00:20]} Nb4 {[%emt 0:01:24]} 25. Qh6 {[%emt 0:02:39]} f6 {[%emt 0:02:06]} 26. Rc7 {[%emt 0:01:00]} Rf7 {[%emt 0:03:14]} 27. Rxf7 {[%emt 0:00:55]} 1-0

[Event "SVK ECo-C Extraliga 2021-22"]
[Site "Slovakia"]
[Date "2022.05.08"]
[Round "8.1"]
[White "Stocek, Jiri"]
[Black "Ftacnik, Lubomir"]
[Result "1/2-1/2"]
[ECO "D85"]
[WhiteElo "2556"]
[BlackElo "2508"]
[Annotator "TA"]
[PlyCount "145"]
[EventDate "2021.10.21"]
[EventType "team-tourn"]
[EventCountry "SVK"]
[SourceTitle "playchess.com"]
[Source "ChessBase"]
[SourceQuality "1"]
[TimeControl "40/5400+30:1800+30"]

{[%evp 15,145,17,14,2,14,-10,16,0,15,-20,-17,-19,-28,-24,-19,-21,-12,-19,-14,-14,-8,-25,-4,0,0,-18,-16,-18,0,-30,0,0,0,0,0,0,4,4,4,0,0,0,8,8,8,8,25,-304,27,35,40,35,35,35,60,60,60,25,27,26,27,28,53,50,51,41,49,45,54,58,59,38,59,55,54,54,59,59,59,59,59,59,59,59,59,59,59,59,82,82,82,82,89,89,90,90,90,90,90,90,90,90,90,90,90,90,90,90,90,90,90,90,90,90,90,90,90,90,90,90,90,90,90,90,90,0,0,0,0,0,6,6]} 1. d4 {[%emt 0:00:32]} Nf6 {[%emt 0:33:43]} 2. c4 {[%emt 0:01:18]} g6 {[%emt 0:00:18]} 3. Nc3 {[%emt 0:00:15]} d5 {[%emt 0:00:10]} 4. cxd5 {[%emt 0:01:19]} Nxd5 {[%emt 0:00:09]} 5. e4 {[%emt 0:00:07]} Nxc3 {[%emt 0:00:07]} 6. bxc3 {[%emt 0:00:04]} Bg7 {[%emt 0:00:09]} 7. Qa4+ {7.Nf3 is a critical line.} Nd7 {[%emt 0:02:39]} 8. Nf3 {[%emt 0:01:54]} O-O {[%emt 0:00:07]} 9. Qa3 {[%emt 0:00:56] D85: Exchange Grünfeld: Unusual White 7th moves and lines with 7 Nf3.} c5 {[%emt 0:08:07]} 10. Bd3 {[%emt 0:03:27] [#]} Qc7 $146 {[%emt 0:05:16]} ({Predecessor:} 10... b6 11. Be3 cxd4 12. cxd4 Nc5 13. O-O Nxd3 14. Qxd3 Bb7 15. Rad1 e6 16. Rfe1 Rc8 {½-½ (52) Dzagnidze,N (2524)-Lagno,K (2558) Chess.com INT 2021}) 11. Rb1 {[%emt 0:11:46]} e5 {[%emt 0:02:19]} 12. Bd2 {[%emt 0:13:25]} b6 {[%emt 0:03:19][%cal Re5d4]} 13. O-O {[%emt 0:03:04]} exd4 {[%emt 0:03:34]} 14. cxd4 {[%emt 0:00:08]} cxd4 {[%emt 0:00:12]} 15. Rfc1 {[%emt 0:08:14]} Nc5 {[%emt 0:00:53]} 16. Bb4 {[%emt 0:01:07]} Be6 {[%emt 0:04:12]} 17. Bxc5 {[%emt 0:11:19]} bxc5 {[%emt 0:00:08]} 18. Rxc5 {[%emt 0:00:14]} (18. Ng5 {seems wilder.} Qf4 19. Rxc5 Be5 20. Nf3) 18... Qe7 {[%emt 0:01:26]} (18... Qf4 {keeps more tension.} 19. Ng5 Be5 20. Nf3 Bc7) 19. Qa5 {[%emt 0:01:24]} Bxa2 {[%emt 0:06:38] This bishop pair is nice.} 20. Ra1 {[%emt 0:04:15]} (20. Rc7 $5 {[%cal Rc7e7]} Qd8 21. Rbb7 $11) 20... Be6 {[%emt 0:00:21]} 21. Rc7 {[%emt 0:00:11]} Qd8 {[%emt 0:00:27]} 22. Rxa7 {[%emt 0:01:11]} Qxa5 {[%emt 0:00:26]} 23. R7xa5 {[%emt 0:01:50]} Rxa5 {[%emt 0:00:49]} 24. Rxa5 {[%emt 0:00:04]} Rc8 {[%emt 0:00:39] [#] ...Rc1+ is the strong threat.} 25. Kf1 {[%emt 0:00:35]} Bg4 {[%emt 0:06:52]} 26. Ke2 {[%emt 0:07:55]} Rb8 {[%emt 0:05:16]} 27. Ra2 {[%emt 0:02:25]} Be6 {[%emt 0:08:27]} 28. Rc2 {[%emt 0:04:36]} Bg4 {[%emt 0:01:28]} 29. h3 {[%emt 0:01:17]} Bxf3+ {[%emt 0:00:19]} 30. Kxf3 $11 {[%emt 0:00:05][%mdl 4096] Endgame KRB-KRB} Rb3 {[%emt 0:01:44]} 31. Rc8+ {[%emt 0:00:50]} Bf8 {[%emt 0:00:01]} 32. Ke2 {[%emt 0:00:07]} Rb2+ {[%emt 0:00:31]} 33. Bc2 {[%emt 0:00:46]} Kg7 {[%emt 0:00:28]} 34. Kd3 {[%emt 0:01:16]} Rb4 {[%emt 0:00:37]} 35. e5 {[%emt 0:01:04]} Rb5 {[%emt 0:01:41]} 36. Re8 {[%emt 0:10:12]} Ba3 {[%emt 0:01:48]} 37. Kxd4 {[%emt 0:03:10]} Bb2+ {[%emt 0:00:06]} 38. Ke4 {[%emt 0:00:07]} f5+ {[%emt 0:00:07]} 39. exf6+ $1 {[%emt 0:00:10]} Kxf6 {[%emt 0:01:27]} 40. Ra8 {[%emt 0:00:39]} Re5+ {[%emt 0:00:43]} 41. Kf3 {[%emt 0:30:42]} Bd4 {[%emt 0:31:38]} 42. h4 {[%emt 0:01:43]} Re7 {[%emt 0:00:00]} 43. Rb8 {[%emt 0:00:00]} Ba7 {[%emt 0:00:00]} 44. Rb4 {[%emt 0:00:00]} Rd7 {[%emt 0:00:00]} 45. Ke2 {[%emt 0:00:00] Inhibits Rd2+.} Re7+ {[%emt 0:00:00]} 46. Be4 {[%emt 0:00:00]} Bc5 {[%emt 0:00:00]} 47. Rc4 {[%emt 0:00:00]} Bd6 {[%emt 0:00:00]} 48. g3 {[%emt 0:00:00]} h6 {[%emt 0:00:00]} 49. Kf3 {[%emt 0:00:00]} Rc7 {[%emt 0:00:56]} 50. Ra4 {[%emt 0:00:00]} Rf7 {[%emt 0:03:24]} 51. Kg2 {[%emt 0:00:00]} g5 {[%emt 0:01:02]} 52. h5 {[%emt 0:00:00]} Kg7 {[%emt 0:01:09]} 53. Bd5 {[%emt 0:00:00]} Rf6 {[%emt 0:00:33]} 54. Ra7+ {[%emt 0:00:00]} Kh8 {[%emt 0:00:01][%cal Of6f2]} 55. f3 {[%emt 0:00:00]} Bc5 {[%emt 0:00:22]} 56. Rc7 {[%emt 0:00:00]} Bd6 {[%emt 0:00:03]} 57. Rb7 {[%emt 0:00:00] White is more active.} Be5 {[%emt 0:00:18]} 58. Kh3 {[%emt 0:00:00]} Bd6 {[%emt 0:00:12]} 59. Kg4 {[%emt 0:00:00]} Be5 {[%emt 0:00:18]} 60. Be4 {[%emt 0:00:00]} Bd6 {[%emt 0:00:08]} 61. Bg6 {[%emt 0:01:59] [#] Hoping for Rh7+.} Kg8 {[%emt 0:00:07]} 62. Bh7+ {[%emt 0:01:27]} Kh8 {[%emt 0:00:19]} 63. Be4 {[%emt 0:00:06]} Kg8 {[%emt 0:00:25]} 64. Bd5+ {[%emt 0:00:21]} Kh8 {[%emt 0:00:11]} 65. Rd7 {[%emt 0:00:55]} Be5 {[%emt 0:00:55]} 66. Rd8+ {[%emt 0:04:41]} Kg7 {[%emt 0:00:08]} 67. Rg8+ {[%emt 0:00:15]} Kh7 {[%emt 0:00:02]} 68. Re8 {[%emt 0:00:25]} Bd6 {[%emt 0:00:11]} 69. Be6 {[%emt 0:00:30]} Kg7 {[%emt 0:00:15]} 70. Bf5 {[%emt 0:00:19]} (70. Rg8+ $16 Kh7 71. Bb3) 70... Bxg3 $1 {[%emt 0:00:55] The position is equal.} 71. Re7+ {[%emt 0:00:34]} Kf8 {[%emt 0:00:07]} 72. Re6 {[%emt 0:01:06]} Rxe6 {[%emt 0:00:07]} 73. Bxe6 {[%emt 0:00:03] Weighted Error Value: White=0.04 (flawless) /Black=0.05 (flawless)} 1/2-1/2